lending/lending_fUSD_20250303
["ID","MTS","AMOUNT","RATE_DAILY","PERIOD"]
[355235240,1741032639190,-2141.21525606,0.00014549,2]
[355235243,1741032639202,-638.94000003,0.00014549,2]
[355235246,1741032639231,-1279.03474391,0.00014549,2]
[355235248,1741032639240,-765.12,0.00014549,2]
[355235250,1741032639250,-500.0,0.00014549,2]
[355235252,1741032639260,-500.0,0.00014549,2]
[355235254,1741032639269,-816.14,0.00014549,2]
[355235256,1741032639279,-500.0,0.00014549,2]
[355235258,1741032639289,-500.0,0.00014549,2]
[355235260,1741032639298,-1303.62,0.00014549,2]
[355235262,1741032639307,-760.35,0.00014549,2]
[355235264,1741032639317,-500.0,0.00014549,2]
[355235266,1741032639326,-500.0,0.00014549,2]
[355235268,1741032639336,-500.0,0.00014549,2]
[355235270,1741032639345,-500.0,0.00014549,2]
[355235272,1741032639354,-990.96,0.00014549,2]
[355235274,1741032639363,-887.63,0.00014549,2]
[355235276,1741032639373,-983.27,0.00014549,2]
[355235278,1741032639381,-46.74115608,0.00014549,2]
[355235285,1741032639441,-453.25884392,0.00014549,2]
[355235287,1741032639451,-506.16,0.00014549,2]
[355235289,1741032639460,-1051.59,0.00014549,2]
[355235291,1741032639470,-500.0,0.00014549,2]
[355235293,1741032639479,-500.0,0.00014549,2]
[355235295,1741032639488,-1735.91,0.00014549,2]
[355235297,1741032639498,-1606.85,0.00014549,2]
[355235299,1741032639507,-55.41764649,0.00014549,2]
[355235301,1741032639520,-783.37235351,0.00014549,2]
[355235303,1741032639529,-500.0,0.00014549,2]
[355235305,1741032639539,-500.0,0.00014549,2]
[355235307,1741032639548,-1194.80674049,0.00014549,2]
[355235310,1741032639565,-82.28325951,0.00014549,2]
[355235312,1741032639574,-218.71674014,0.00014549,2]
[355235314,1741032639585,-325.08325986,0.00014549,2]
[355235316,1741032639595,-500.0,0.00014549,2]
[355235318,1741032639604,-500.0,0.00014549,2]
[355235320,1741032639613,-1305.84,0.00014549,2]
[355235322,1741032639623,-500.0,0.00014549,2]
[355235324,1741032639632,-267.54117753,0.00014549,2]
[355235325,1741032639642,-9.78556231,0.00014549,2]
[355235326,1741032639657,-490.21443769,0.00014549,2]
[355235327,1741032639667,-500.0,0.00014549,2]
[355235328,1741032639679,-500.0,0.00014549,2]
[355235329,1741032639688,-629.78556231,0.00014549,2]
[355235330,1741032639705,-491.82443769,0.00014549,2]
[355235331,1741032639715,-602.37527519,0.00014549,2]
[355235332,1741032639727,-168.22472481,0.00014549,2]
[355235333,1741032639737,-500.0,0.00014549,2]
[355235334,1741032639751,-500.0,0.00014549,2]
[355235336,1741032639760,-1018.8,0.00014549,2]
[355235337,1741032639769,-386.97527519,0.00014549,2]
[355235338,1741032639781,-113.02472481,0.00014549,2]
[355235339,1741032639791,-500.0,0.00014549,2]
[355235340,1741032639800,-980.87,0.00014549,2]
[355235341,1741032639810,-1127.72,0.00014549,2]
[355235342,1741032639822,-500.0,0.00014549,2]
[355235343,1741032639832,-934.88,0.00014549,2]
[355235344,1741032639842,-184.77047058,0.00014549,2]
[355235345,1741032639852,-1079.17,0.00014549,2]
[355235346,1741032639861,-500.0,0.00014549,2]
[355235347,1741032639874,-79.56480461,0.00014549,2]
[355235353,1741032640315,-500.0,0.00014548,2]
[355235354,1741032640330,-799.42865558,0.00014549,2]
[355235355,1741032640347,-236.36653981,0.00014549,2]
[355235356,1741032640369,-87.75103839,0.00014549,2]
[355235357,1741032640387,-412.24896161,0.00014549,2]
[355235358,1741032640407,-75.29975458,0.00014549,2]
[355235359,1741032640436,-936.80024542,0.00014549,2]
[355235360,1741032640453,-500.0,0.00014549,2]
[355235361,1741032640470,-201.19724963,0.00014549,2]
[355235362,1741032640533,-298.80275037,0.00014549,2]
[355235363,1741032640548,-686.53,0.00014549,2]
[355235364,1741032640564,-434.97568804,0.00014549,2]
[355235365,1741032640583,-65.02431196,0.00014549,2]
[355235366,1741032640597,-1780.68,0.00014549,2]
[355235367,1741032640612,-500.0,0.00014549,2]
[355235368,1741032640628,-1346.53,0.00014549,2]
[355235369,1741032640643,-809.37,0.00014549,2]
[355235370,1741032640663,-500.0,0.00014549,2]
[355235371,1741032640678,-500.0,0.00014549,2]
[355235372,1741032640696,-918.85,0.00014549,2]
[355235373,1741032640711,-500.0,0.00014549,2]
[355235374,1741032640726,-794.9,0.00014549,2]
[355235375,1741032640742,-500.0,0.00014549,2]
[355235376,1741032640757,-1010.03,0.00014549,2]
[355235377,1741032640773,-500.0,0.00014549,2]
[355235378,1741032640789,-1054.44,0.00014549,2]
[355235379,1741032640806,-500.0,0.00014549,2]
[355235380,1741032640820,-500.0,0.00014549,2]
[355235381,1741032640836,-1889.51,0.00014549,2]
[355235382,1741032640852,-500.0,0.00014549,2]
[355235383,1741032640868,-1234.01,0.00014549,2]
[355235384,1741032640890,-500.0,0.00014549,2]
[355235385,1741032640908,-754.7,0.00014549,2]
[355235386,1741032640924,-1775.54,0.00014549,2]
[355235387,1741032640940,-500.0,0.00014549,2]
[355235388,1741032640956,-714.67,0.00014549,2]
[355235389,1741032640973,-500.0,0.00014549,2]
[355235390,1741032640989,-500.0,0.00014549,2]
[355235391,1741032641004,-500.0,0.00014549,2]
[355235392,1741032641022,-939.1,0.00014549,2]
[355235393,1741032641039,-661.83,0.00014549,2]
[355235394,1741032641055,-738.79,0.00014549,2]
[355235395,1741032641071,-562.0,0.00014549,2]
[355235396,1741032641087,-500.0,0.00014549,2]
[355235397,1741032641103,-500.0,0.00014549,2]
[355235398,1741032641119,-500.0,0.00014549,2]
[355235399,1741032641136,-575.26,0.00014549,2]
[355235400,1741032641152,-960.67,0.00014549,2]
[355235401,1741032641172,-500.0,0.00014549,2]
[355235402,1741032641189,-500.0,0.00014549,2]
[355235403,1741032641206,-500.0,0.00014549,2]
[355235404,1741032641222,-500.0,0.00014549,2]
[355235405,1741032641240,-968.12,0.00014549,2]
[355235406,1741032641256,-500.0,0.00014549,2]
[355235407,1741032641272,-575.55,0.00014549,2]
[355235408,1741032641288,-500.0,0.00014549,2]
[355235409,1741032641304,-500.0,0.00014549,2]
[355235410,1741032641320,-500.0,0.00014549,2]
[355235411,1741032641336,-500.0,0.00014549,2]
[355235412,1741032641351,-500.0,0.00014549,2]
[355235413,1741032641366,-500.0,0.00014549,2]
[355235414,1741032641383,-500.0,0.00014549,2]
[355235415,1741032641399,-500.0,0.00014549,2]
[355235416,1741032641417,-1655.96,0.00014549,2]
[355235417,1741032641433,-500.0,0.00014549,2]
[355235418,1741032641449,-500.0,0.00014549,2]
[355235419,1741032641465,-500.0,0.00014549,2]
[355235420,1741032641480,-1025.3,0.00014549,2]
[355235421,1741032641495,-500.0,0.00014549,2]
[355235422,1741032641509,-1101.42,0.00014549,2]
[355235423,1741032641525,-500.0,0.00014549,2]
[355235425,1741032641539,-562.2,0.00014549,2]
[355235428,1741032641554,-500.0,0.00014549,2]
[355235430,1741032641567,-500.0,0.00014549,2]
[355235432,1741032641576,-500.0,0.00014549,2]
[355235434,1741032641586,-500.0,0.00014549,2]
[355235436,1741032641596,-616.08,0.00014549,2]
[355235438,1741032641607,-500.0,0.00014549,2]
[355235440,1741032641617,-2393.78,0.00014549,2]
[355235443,1741032641627,-500.0,0.00014549,2]
[355235445,1741032641638,-500.0,0.00014549,2]
[355235447,1741032641648,-500.0,0.00014549,2]
[355235449,1741032641661,-1563.24,0.00014549,2]
[355235451,1741032641672,-500.0,0.00014549,2]
[355235453,1741032641682,-500.0,0.00014549,2]
[355235492,1741032642050,-500.0,0.00014549,2]
[355235494,1741032642095,-500.0,0.00014549,2]
[355235495,1741032642117,-560.0,0.00014549,2]
[355235496,1741032642127,-500.0,0.00014549,2]
[355235497,1741032642137,-500.0,0.00014549,2]
[355235498,1741032642147,-500.0,0.00014549,2]
[355235499,1741032642158,-1358.28,0.00014549,2]
[355235500,1741032642167,-812.85,0.00014549,2]
[355235501,1741032642177,-500.0,0.00014549,2]
[355235502,1741032642188,-500.0,0.00014549,2]
[355235503,1741032642197,-1535.58,0.00014549,2]
[355235505,1741032642207,-817.11,0.00014549,2]
[355235507,1741032642216,-510.09718457,0.00014549,2]
[355235509,1741032642225,-1405.84,0.00014549,2]
[355235511,1741032642235,-388.32269099,0.00014549,2]
[355235513,1741032642245,-953.01,0.00014549,2]
[355235515,1741032642255,-441.18168775,0.00014549,2]
[355235517,1741032642265,-906.47,0.00014549,2]
[355235519,1741032642275,-2021.89,0.00014549,2]
[355235521,1741032642285,-500.0,0.00014549,2]
[355235523,1741032642296,-547.45,0.00014549,2]
[355235525,1741032642305,-771.0,0.00014549,2]
[355235527,1741032642315,-500.0,0.00014549,2]
[355235529,1741032642325,-500.0,0.00014549,2]
[355235531,1741032642335,-554.06,0.00014549,2]
[355235533,1741032642345,-500.0,0.00014549,2]
[355235535,1741032642355,-503.4992032,0.00014549,2]
[355235537,1741032642364,-500.0,0.00014549,2]
[355235539,1741032642373,-1504.22,0.00014549,2]
[355235541,1741032642383,-431.45220378,0.00014549,2]
[355235542,1741032642393,-500.0,0.00014549,2]
[355235544,1741032642402,-500.0,0.00014549,2]
[355235546,1741032642416,-529.27526937,0.00014549,2]
[355235549,1741032642426,-846.19,0.00014549,2]
[355235550,1741032642436,-500.0,0.00014549,2]
[355235552,1741032642445,-1568.65,0.00014549,2]
[355235554,1741032642455,-500.0,0.00014549,2]
[355235556,1741032642464,-12585.92,0.00014549,2]
[355235558,1741032642474,-500.0,0.00014549,2]
[355235560,1741032642483,-1170.37,0.00014549,2]
[355235562,1741032642493,-500.0,0.00014549,2]
[355235564,1741032642502,-1751.33,0.00014549,2]
[355235566,1741032642512,-500.0,0.00014549,2]
[355235568,1741032642522,-507.14211847,0.00014549,2]
[355235570,1741032642532,-1647.32,0.00014549,2]
[355235572,1741032642542,-623.92,0.00014549,2]
[355235574,1741032642552,-2127.54,0.00014549,2]
[355235576,1741032642561,-5367.19,0.00014549,2]
[355235578,1741032642573,-1939.35,0.00014549,2]
[355235580,1741032642584,-3400.2,0.00014549,2]
[355235583,1741032642595,-500.0,0.00014549,2]
[355235585,1741032642605,-500.0,0.00014549,2]
[355235586,1741032642614,-500.0,0.00014549,2]
[355235588,1741032642624,-500.0,0.00014549,2]
[355235590,1741032642633,-500.0,0.00014549,2]
[355235592,1741032642643,-2413.08,0.00014549,2]
[355235594,1741032642652,-979.22,0.00014549,2]
[355235596,1741032642665,-2943.75,0.00014549,2]
[355235598,1741032642675,-500.0,0.00014549,2]
[355235600,1741032642684,-628.28,0.00014549,2]
[355235602,1741032642693,-298.57628381,0.00014549,2]
[355235604,1741032642703,-877.77,0.00014549,2]
[355235606,1741032642712,-3127.08,0.00014549,2]
[355235608,1741032642722,-2190.546268,0.00014549,2]
[355235610,1741032642731,-958.26,0.00014549,2]
[355235612,1741032642741,-6700.49,0.00014549,2]
[355235615,1741032642750,-3223.8,0.00014549,2]
[355235617,1741032642759,-158.041163,0.00014549,2]
[355235620,1741032642769,-4973.02,0.00014549,2]
[355235623,1741032642779,-500.0,0.00014549,2]
[355235626,1741032642789,-547.92434254,0.00014549,2]
[355235629,1741032642798,-500.0,0.00014549,2]
[355235631,1741032642807,-150.855452,0.00014549,2]
[355235634,1741032642816,-1914.0,0.00014549,2]
[355235636,1741032642825,-931.79,0.00014549,2]
[355235639,1741032642834,-500.0,0.00014549,2]
[355235642,1741032642843,-2985.65,0.00014549,2]
[355235645,1741032642853,-3561.57,0.00014549,2]
[355235648,1741032642863,-500.0,0.00014549,2]
[355235651,1741032642872,-8997.65,0.00014549,2]
[355235654,1741032642882,-761.43,0.00014549,2]
[355235656,1741032642892,-822.48,0.00014549,2]
[355235659,1741032642901,-501.91818323,0.00014549,2]
[355235664,1741032642913,-500.0,0.00014549,2]
[355235666,1741032642922,-500.0,0.00014549,2]
[355235669,1741032642931,-734.46,0.00014549,2]
[355235672,1741032642940,-3540.53,0.00014549,2]
[355235675,1741032642949,-7984.44,0.00014549,2]
[355235678,1741032642960,-500.0,0.00014549,2]
[355235682,1741032642969,-1862.09,0.00014549,2]
[355235685,1741032642979,-7715.2,0.00014549,2]
[355235688,1741032642989,-1739.967887,0.00014549,2]
[355235692,1741032642997,-3493.42,0.00014549,2]
[355235696,1741032643008,-500.0,0.00014549,2]
[355235700,1741032643018,-500.0,0.00014549,2]
[355235704,1741032643028,-500.0,0.00014549,2]
[355235708,1741032643042,-2128.6,0.00014549,2]
[355235712,1741032643053,-500.0,0.00014549,2]
[355235716,1741032643064,-3296.68,0.00014549,2]
[355235720,1741032643075,-500.0,0.00014549,2]
[355235724,1741032643085,-844.42,0.00014549,2]
[355235729,1741032643096,-1206.13,0.00014549,2]
[355235734,1741032643107,-2466.97,0.00014549,2]
[355235738,1741032643118,-500.0,0.00014549,2]
[355235742,1741032643128,-500.0,0.00014549,2]
[355235748,1741032643139,-2928.68,0.00014549,2]
[355235753,1741032643148,-657.78,0.00014549,2]
[355235757,1741032643160,-500.0,0.00014549,2]
[355235761,1741032643170,-948.62,0.00014549,2]
[355235764,1741032643180,-3146.74,0.00014549,2]
[355235768,1741032643190,-397.43200366,0.00014549,2]
[355235772,1741032643201,-2120.96,0.00014549,2]
[355235776,1741032643211,-500.0,0.00014549,2]
[355235780,1741032643221,-1722.43,0.00014549,2]
[355235784,1741032643231,-1136.86,0.00014549,2]
[355235788,1741032643241,-1613.27,0.00014549,2]
[355235792,1741032643251,-500.0,0.00014549,2]
[355235796,1741032643261,-1571.36,0.00014549,2]
[355235800,1741032643271,-528.73146899,0.00014549,2]
[355235804,1741032643281,-881.87,0.00014549,2]
[355235808,1741032643291,-500.0,0.00014549,2]
[355235812,1741032643301,-1110.61,0.00014549,2]
[355235816,1741032643311,-500.0,0.00014549,2]
[355235820,1741032643321,-2729.54,0.00014549,2]
[355235821,1741032643330,-519.40704771,0.00014549,2]
[355235823,1741032643340,-1716.6,0.00014549,2]
[355235825,1741032643350,-500.0,0.00014549,2]
[355235827,1741032643360,-729.97,0.00014549,2]
[355235829,1741032643370,-620.67298144,0.00014549,2]
[355235832,1741032643380,-5942.64,0.00014549,2]
[355235834,1741032643390,-500.0,0.00014549,2]
[355235836,1741032643400,-2147.41,0.00014549,2]
[355235838,1741032643411,-1728.2,0.00014549,2]
[355235840,1741032643421,-500.0,0.00014549,2]
[355235842,1741032643431,-505.20822857,0.00014549,2]
[355235844,1741032643441,-500.0,0.00014549,2]
[355235846,1741032643451,-500.0,0.00014549,2]
[355235848,1741032643460,-2906.7,0.00014549,2]
[355235850,1741032643470,-500.0,0.00014549,2]
[355235852,1741032643480,-1124.55,0.00014549,2]
[355235854,1741032643489,-2989.57,0.00014549,2]
[355235856,1741032643499,-1775.6,0.00014549,2]
[355235858,1741032643509,-500.0,0.00014549,2]
[355235860,1741032643520,-501.94083038,0.00014549,2]
[355235862,1741032643529,-911.27,0.00014549,2]
[355235864,1741032643539,-500.0,0.00014549,2]
[355235866,1741032643549,-7914.71,0.00014549,2]
[355235868,1741032643559,-500.0,0.00014549,2]
[355235870,1741032643569,-3908.85,0.00014549,2]
[355235872,1741032643579,-10283.99,0.00014549,2]
[355235874,1741032643589,-2075.29,0.00014549,2]
[355235876,1741032643599,-500.0,0.00014549,2]
[355235878,1741032643608,-1455.8,0.00014549,2]
[355235880,1741032643618,-500.0,0.00014549,2]
[355235882,1741032643629,-1007.4,0.00014549,2]
[355235884,1741032643639,-500.0,0.00014549,2]
[355235886,1741032643649,-500.0,0.00014549,2]
[355235888,1741032643664,-500.0,0.00014549,2]
[355235890,1741032643675,-636.94,0.00014549,2]
[355235892,1741032643686,-1164.1,0.00014549,2]
[355235894,1741032643697,-500.0,0.00014549,2]
[355235896,1741032643707,-500.0,0.00014549,2]
[355235898,1741032643718,-1357.22,0.00014549,2]
[355235900,1741032643728,-1614.74,0.00014549,2]
[355235902,1741032643737,-2818.71,0.00014549,2]
[355235904,1741032643747,-369.89802904,0.00014549,2]
[355235906,1741032643757,-500.0,0.00014549,2]
[355235909,1741032643767,-608.63451024,0.00014549,2]
[355235911,1741032643777,-1548.59,0.00014549,2]
[355235913,1741032643787,-500.0,0.00014549,2]
[355235915,1741032643796,-1218.75,0.00014549,2]
[355235917,1741032643806,-3737.38,0.00014549,2]
[355235919,1741032643816,-500.0,0.00014549,2]
[355235921,1741032643825,-2344.81,0.00014549,2]
[355235923,1741032643835,-22078.75,0.00014549,2]
[355235924,1741032643845,-500.0,0.00014549,2]
[355235926,1741032643856,-501.47406269,0.00014549,2]
[355235928,1741032643865,-500.0,0.00014549,2]
[355235931,1741032643875,-500.0,0.00014549,2]
[355235933,1741032643886,-1167.28,0.00014549,2]
[355235935,1741032643895,-500.0,0.00014549,2]
[355235937,1741032643905,-500.0,0.00014549,2]
[355235939,1741032643920,-1228.64,0.00014549,2]
[355235941,1741032643930,-1775.54,0.00014549,2]
[355235943,1741032643939,-500.0,0.00014549,2]
[355235945,1741032643949,-500.0,0.00014549,2]
[355235947,1741032643959,-500.0,0.00014549,2]
[355235949,1741032643969,-590.32,0.00014549,2]
[355235951,1741032643979,-1884.91,0.00014549,2]
[355235953,1741032643988,-500.0,0.00014549,2]
[355235955,1741032643998,-500.0,0.00014549,2]
[355235957,1741032644008,-500.0,0.00014549,2]
[355235959,1741032644018,-500.0,0.00014549,2]
[355235961,1741032644028,-879.45,0.00014549,2]
[355235963,1741032644039,-2069.92,0.00014549,2]
[355235965,1741032644049,-2074.87,0.00014549,2]
[355235966,1741032644060,-552.12,0.00014549,2]
[355235968,1741032644070,-500.0,0.00014549,2]
[355235971,1741032644080,-500.0,0.00014549,2]
[355235973,1741032644091,-1143.32,0.00014549,2]
[355235974,1741032644101,-500.0,0.00014549,2]
[355235977,1741032644111,-500.0,0.00014549,2]
[355235979,1741032644121,-622.02,0.00014549,2]
[355235981,1741032644132,-500.96102263,0.00014549,2]
[355235983,1741032644142,-500.0,0.00014549,2]
[355235985,1741032644151,-692.78,0.00014549,2]
[355235987,1741032644164,-500.0,0.00014549,2]
[355235989,1741032644175,-1265.66,0.00014549,2]
[355235991,1741032644185,-778.98,0.00014549,2]
[355235993,1741032644195,-500.0,0.00014549,2]
[355235995,1741032644206,-1807.82,0.00014549,2]
[355235997,1741032644215,-500.0,0.00014549,2]
[355235999,1741032644226,-595.69443228,0.00014549,2]
[355236000,1741032644236,-537.59,0.00014549,2]
[355236003,1741032644245,-500.0,0.00014549,2]
[355236005,1741032644255,-436.63942254,0.00014549,2]
[355236007,1741032644266,-500.0,0.00014549,2]
[355236008,1741032644275,-500.0,0.00014549,2]
[355236010,1741032644285,-1968.62,0.00014549,2]
[355236012,1741032644294,-500.0,0.00014549,2]
[355236013,1741032644304,-500.0,0.00014549,2]
[355236014,1741032644313,-658.97,0.00014549,2]
[355236015,1741032644323,-1842.24,0.00014549,2]
[355236016,1741032644332,-500.0,0.00014549,2]
[355236017,1741032644342,-500.0,0.00014549,2]
[355236018,1741032644351,-500.0,0.00014549,2]
[355236019,1741032644361,-2368.59,0.00014549,2]
[355236020,1741032644371,-1847.85,0.00014549,2]
[355236021,1741032644381,-502.01287773,0.00014549,2]
[355236022,1741032644390,-500.0,0.00014549,2]
[355236023,1741032644399,-500.0,0.00014549,2]
[355236024,1741032644412,-500.0,0.00014549,2]
[355236025,1741032644422,-500.0,0.00014549,2]
[355236026,1741032644431,-1236.47,0.0001455,2]
[355236027,1741032644441,-1696.27,0.0001455,2]
[355236028,1741032644450,-1200.43,0.0001455,2]
[355236029,1741032644460,-1523.01,0.0001455,2]
[355236030,1741032644470,-1060.97,0.0001455,2]
[355236031,1741032644480,-933.27,0.0001455,2]
[355236032,1741032644490,-500.0,0.0001455,2]
[355236033,1741032644500,-1224.82,0.0001455,2]
[355236034,1741032644509,-1902.62,0.0001455,2]
[355236035,1741032644519,-1526.82,0.0001455,2]
[355236036,1741032644528,-500.0,0.0001455,2]
[355236037,1741032644538,-500.0,0.0001455,2]
[355236038,1741032644547,-2105.38,0.0001455,2]
[355236039,1741032644557,-733.06,0.0001455,2]
[355236040,1741032644566,-1321.14,0.0001455,2]
[355236041,1741032644575,-1506.3,0.0001455,2]
[355236042,1741032644585,-1642.95,0.0001455,2]
[355236043,1741032644594,-836.77,0.0001455,2]
[355236044,1741032644604,-1061.98,0.0001455,2]
[355236045,1741032644614,-993.34,0.0001455,2]
[355236046,1741032644623,-1775.7,0.0001455,2]
[355236047,1741032644633,-910.81,0.0001455,2]
[355236048,1741032644643,-980.18,0.0001455,2]
[355236049,1741032644652,-900.16,0.0001455,2]
[355236050,1741032644665,-1767.74,0.0001455,2]
[355236051,1741032644675,-1406.59,0.0001455,2]
[355236052,1741032644686,-1384.18,0.0001455,2]
[355236053,1741032644695,-1113.61,0.0001455,2]
[355236054,1741032644705,-852.34,0.0001455,2]
[355236055,1741032644715,-500.0,0.0001455,2]
[355236056,1741032644724,-1085.1,0.0001455,2]
[355236057,1741032644734,-505.69737942,0.0001455,2]
[355236058,1741032644743,-1298.24,0.0001455,2]
[355236059,1741032644753,-500.0,0.0001455,2]
[355236060,1741032644763,-1370.48,0.0001455,2]
[355236061,1741032644772,-500.0,0.0001455,2]
[355236062,1741032644782,-500.0,0.0001455,2]
[355236063,1741032644791,-1049.59,0.0001455,2]
[355236064,1741032644801,-2050.84,0.0001455,2]
[355236065,1741032644811,-1664.74,0.0001455,2]
[355236066,1741032644820,-532.17,0.0001455,2]
[355236067,1741032644830,-500.0,0.0001455,2]
[355236068,1741032644840,-504.57,0.0001455,2]
[355236069,1741032644849,-500.0,0.0001455,2]
[355236070,1741032644859,-1447.33,0.0001455,2]
[355236071,1741032644869,-1568.84,0.0001455,2]
[355236072,1741032644879,-724.98,0.0001455,2]
[355236073,1741032644888,-755.6,0.0001455,2]
[355236074,1741032644898,-913.93,0.0001455,2]
[355236075,1741032644911,-500.0,0.0001455,2]
[355236076,1741032644921,-1186.29,0.0001455,2]
[355236077,1741032644931,-1354.39,0.0001455,2]
[355236078,1741032644940,-1135.23,0.0001455,2]
[355236079,1741032644950,-3681.27,0.0001455,2]
[355236080,1741032644959,-1118.44,0.0001455,2]
[355236081,1741032644969,-20282.96,0.0001455,2]
[355236082,1741032644979,-503.21975795,0.0001455,2]
[355236083,1741032644989,-1442.14,0.0001455,2]
[355236084,1741032644999,-4473.06,0.0001455,2]
[355236085,1741032645010,-2400.09,0.0001455,2]
[355236086,1741032645019,-742.75,0.0001455,2]
[355236087,1741032645029,-2742.34,0.0001455,2]
[355236088,1741032645043,-500.0,0.0001455,2]
[355236089,1741032645053,-1588.31,0.0001455,2]
[355236090,1741032645063,-2924.23,0.0001455,2]
[355236091,1741032645073,-35484.51,0.0001455,2]
[355236092,1741032645085,-1429.54,0.0001455,2]
[355236093,1741032645095,-500.0,0.0001455,2]
[355236094,1741032645106,-500.0,0.0001455,2]
[355236095,1741032645117,-500.0,0.0001455,2]
[355236096,1741032645127,-1211.22,0.0001455,2]
[355236097,1741032645138,-2564.12,0.0001455,2]
[355236098,1741032645148,-500.0,0.0001455,2]
[355236099,1741032645346,-5006.99,0.0001455,2]
[355236100,1741032645397,-35510.23,0.0001455,2]
[355236101,1741032645412,-963.06,0.0001455,2]
[355236102,1741032645423,-919.17,0.0001455,2]
[355236103,1741032645433,-1974.72,0.0001455,2]
[355236104,1741032645444,-4601.86,0.0001455,2]
[355236105,1741032645454,-992.94,0.0001455,2]
[355236106,1741032645464,-1929.1,0.0001455,2]
[355236107,1741032645474,-1534.92,0.0001455,2]
[355236108,1741032645485,-500.0,0.0001455,2]
[355236109,1741032645496,-6403.94,0.0001455,2]
[355236110,1741032645507,-500.0,0.0001455,2]
[355236111,1741032645517,-2216.73,0.0001455,2]
[355236112,1741032645528,-6298.47,0.0001455,2]
[355236113,1741032645538,-873.88,0.0001455,2]
[355236114,1741032645548,-2825.29,0.0001455,2]
[355236115,1741032645558,-500.0,0.0001455,2]
[355236116,1741032645568,-2766.08,0.0001455,2]
[355236117,1741032645579,-500.0,0.0001455,2]
[355236118,1741032645588,-3161.41,0.0001455,2]
[355236119,1741032645598,-916.23,0.0001455,2]
[355236120,1741032645608,-1148.22,0.0001455,2]
[355236121,1741032645619,-488.73160937,0.0001455,2]
[355236122,1741032645628,-500.0,0.0001455,2]
[355236123,1741032645638,-1275.31,0.0001455,2]
[355236124,1741032645648,-2621.38,0.0001455,2]
[355236125,1741032645659,-501.26062627,0.00014551,2]
[355236126,1741032645671,-500.0,0.00014551,2]
[355236127,1741032645681,-500.0,0.00014551,2]
[355236128,1741032645691,-997.65,0.00014551,2]
[355236129,1741032645701,-500.0,0.00014551,2]
[355236130,1741032645710,-500.0,0.00014551,2]
[355236131,1741032645720,-500.0,0.00014551,2]
[355236132,1741032645730,-1189.83,0.00014551,2]
[355236134,1741032645739,-500.0,0.00014551,2]
[355236138,1741032645749,-657.18,0.00014551,2]
[355236140,1741032645758,-500.0,0.00014551,2]
[355236141,1741032645768,-477.01203905,0.00014551,2]
[355236144,1741032645778,-579.01106967,0.00014551,2]
[355236146,1741032645787,-804.5,0.00014551,2]
[355236148,1741032645797,-600.29,0.00014551,2]
[355236152,1741032645812,-1067.6,0.00014551,2]
[355236154,1741032645822,-832.21,0.00014551,2]
[355236156,1741032645832,-500.0,0.00014551,2]
[355236159,1741032645842,-665.56,0.00014551,2]
[355236160,1741032645852,-712.53,0.00014551,2]
[355236165,1741032645862,-500.0,0.00014551,2]
[355236169,1741032645873,-727.74,0.00014551,2]